Cogmind - Beta 13 @@@ ROGUE MODE // 2024.04.27 @ 15:49:26 Player: Prominous Vale Result: Destroyed by Y-45 Defender with Beam Rifle Performance ------------- Evolutions (2) 1000 Regions Visited (4) 800 Robots Destroyed (42) 210 Value Destroyed (1237) 1237 Prototype IDs (1) 20 Alien Tech Used (0) 0 Bonus (269) 269 TOTAL SCORE: 3536 Bonus ------- High Alert Combat Kills 69 Entered Garrisons 200 Cogmind --------- Core Integrity 0/550 Matter 75/300 Energy 100/100 System Corruption 5% Temperature Cool (9) Movement Core (800) Ox15 Location -8/Garrison Parts ------- > --- POWER (1) -------- (None) > --- PROPULSION (4) --- (None) > --- UTILITY (4) ------ Heat Sink High-capacity Storage Unit > --- WEAPON (2) ------- Heavy Particle Cannon > --- INVENTORY (20) --- Improved EM Shotgun Particle Gun Particle Gun Improved Medium Laser Faulty Improved Medium Laser Heavy Assault Rifle Improved Datajack Peak State ------------ > --- POWER ------------ Light Nuclear Core > --- PROPULSION ------- Improved Titanium Leg Improved Titanium Leg Improved Titanium Leg Improved Titanium Leg > --- UTILITY ---------- Heat Sink Improved Heat Sink High-capacity Storage Unit Transmission Jammer > --- WEAPON ----------- Field Laser Rocket Array > --- INVENTORY -------- Light Ion Engine Aluminum Leg Aluminum Leg Aluminum Leg Improved Aluminum Leg Improved Aluminum Leg Heat Sink Heat Sink Improved EM Shotgun Particle Gun Improved Medium Laser Improved Medium Laser Heavy Particle Cannon Heavy Assault Rifle Autogun Rocket Array Rocket Array Rocket Array Improved Datajack [Rating: 40] Favorites ----------- Power Light Ion Engine Engine Light Ion Engine Power Core Light Nuclear Core Propulsion Improved Titanium Leg Leg Improved Titanium Leg Utility High-capacity Storage Unit Device Transmission Jammer Storage High-capacity Storage Unit Protection Medium Armor Plating Weapon Medium Laser Energy Gun Medium Laser Energy Cannon Heavy Particle Cannon Ballistic Gun Autogun Launcher Rocket Array Build | -11 -10 -9 -8 -8 ------- Run | Yrd Mat Mat Mat Gar Slots Evolved 4 | . . 2 2 . Power . | . . . . . Propulsion 2 | . . 1 1 . Utility 2 | . . 1 1 . Weapon . | . . . . . Parts Attached 46 | 7 3 7 14 15 Power 5 | 1 . 1 1 2 Engine 3 | 1 . 1 . 1 Core 2 | . . . 1 1 Reactor . | . . . . . Propulsion 18 | 2 2 2 5 7 Treads . | . . . . . Leg 18 | 2 2 2 5 7 Wheel . | . . . . . Hover . | . . . . . Flight . | . . . . . Utility 13 | 2 . 3 6 2 Device 7 | 1 . . 4 2 Storage 2 | 1 . . 1 . Processor . | . . . . . Hackware . | . . . . . Protection 4 | . . 3 1 . Artifact . | . . . . . Weapon 10 | 2 1 1 2 4 Energy Gun 3 | 1 1 . 1 . Energy Cannon 1 | . . . . 1 Ballistic Gun 3 | 1 . 1 . 1 Ballistic Cannon . | . . . . . Launcher 3 | . . . 1 2 Special Weapon . | . . . . . Impact Weapon . | . . . . . Slashing Weapon . | . . . . . Piercing Weapon . | . . . . . Special Melee Weapon . | . . . . . Unidentified Prototypes 1 | . . . 1 . Parts Lost 31 | . . 5 5 21 Power 4 | . . 1 1 2 Propulsion 11 | . . . . 11 Utility 9 | . . 3 3 3 Weapon 7 | . . 1 1 5 Highest Loss Streak 5 | . . 4 2 5 To Critical Strikes . | . . . . . Average Slot Usage (%) 82 | . 98 88 92 57 Engine 6 | . 14 5 6 2 Core 1 | . . . 1 3 Leg 28 | . 26 29 34 21 Device 11 | . 14 3 16 11 Storage 10 | . 14 11 9 9 Protection 6 | . . 18 6 . Energy Gun 8 | . 14 14 8 1 Ballistic Gun 6 | . 13 7 8 . Launcher 1 | . . . . 4 Naked Turns . | . . . . . Heaviest Build 63 | 13 13 27 63 55 Greatest Support 80 | 20 20 36 80 60 Greatest Overweight (x) 20 | 1 4 1 20 16 Average Overweight (x) . | . . . . 1 Largest Inventory Capacity 20 | 8 8 8 20 20 Average Capacity 15 | 7 8 8 19 20 Most Carried 20 | 5 8 8 20 18 Average Carried 10 | 2 5 7 14 12 Final Capacity 20 | 8 8 8 20 20 Final Carried 19 | 2 8 8 19 7 Class Distribution -------------------- 94% | Mutant 5% | Scavenger-Mutant Dominant Class ---------------- Mutant | -10/Materials Mutant | -9/Materials Mutant | -8/Materials Mutant | -8/Garrison Resources | -11 -10 -9 -8 -8 ----------- Run | Yrd Mat Mat Mat Gar Matter Collected 830 | 294 44 119 240 133 Remotely . | . . . . . Salvage Created 1322 | 124 96 254 526 322 Parts 87 | 8 7 15 31 26 Haulers Intercepted . | . . . . . Recyclers Shooed 2 | . . . 2 . Parts Field Recycled . | . . . . . Retrieved Matter . | . . . . . Parts Self-Destructed . | . . . . . Prevented . | . . . . . Kills | -11 -10 -9 -8 -8 ------- Run | Yrd Mat Mat Mat Gar Combat Hostiles Destroyed 33 | . . 5 12 16 Guns 13 | . . 5 7 1 Cannons 2 | . . . . 2 AOE 18 | . . . 5 13 Classes Destroyed 10 | 2 1 3 2 2 Builder 1 | . . . 1 . Tunneler 2 | 2 . . . . Recycler 4 | 1 1 . 2 . Watcher 2 | . 2 . . . Swarmer 11 | . . . 3 8 Grunt 13 | . . 2 6 5 Duelist 1 | . . 1 . . Sentry 6 | . . 2 3 1 Specialist 1 | . . . . 1 Hunter 1 | . . . . 1 Best Kill Streak 6 | 2 1 2 6 6 Combat Bots Only 6 | . . 2 5 6 Max Kills in Single Turn 4 | 1 1 1 2 4 Gunslinging . | . . . . . Exploded 4 | . . . 2 4 Melee . | . . . . . Uniques/NPCs Destroyed . | . . . . . Combat | -11 -10 -9 -8 -8 -------- Run | Yrd Mat Mat Mat Gar Hostile Shots Fired 313 | . . 46 110 157 Missed 84 | . . 9 30 45 Damage Taken 3747 | . . 717 1200 1830 Core 598 | . . 43 127 428 Absorbed by Shields . | . . . . . Core Remaining (%) 96 | 100 100 89 . . Volleys Fired 103 | 10 6 24 41 22 Largest 2 | 2 2 2 2 2 Hottest 108 | 70 70 100 108 108 Shots Fired 189 | 20 12 47 82 28 Gun 164 | 20 12 47 78 7 Cannon 11 | . . . . 11 Launcher 14 | . . . 4 10 Special . | . . . . . Kinetic 72 | 10 6 16 37 3 Thermal 103 | 10 6 31 41 15 Explosive 14 | . . . 4 10 Electromagnetic . | . . . . . Robot Hit Streak 18 | 5 5 12 18 8 Robot Miss Streak 6 | 2 1 1 4 6 Penetration Max . | . . . . . Secondary Targets 1 | . . . 1 . Max Gunslinging Chain 1 | . . . 1 . Shots Hit Robots 135 | 13 7 37 56 22 Core Hits 88 | 4 4 11 37 32 Critical Kills . | . . . . . Critical Parts Destroyed 1 | . . . 1 . Critical Strikes 9 | 3 . . 6 . Burn 8 | 3 . . 5 . Destroy 1 | . . . 1 . Melee Attacks . | . . . . . Impact . | . . . . . Slashing . | . . . . . Piercing . | . . . . . Sneak Attacks . | . . . . . Combat Hostiles . | . . . . . Follow-up Attacks . | . . . . . Damage Inflicted 3576 | 185 89 501 1561 1240 Guns 1656 | 185 89 501 785 96 Cannons 212 | . . . . 212 Explosions 1706 | . . . 776 930 Melee . | . . . . . Ramming 2 | . . . . 2 Kinetic 757 | 85 26 230 372 44 Thermal 1111 | 100 63 271 413 264 Explosive 1706 | . . . 776 930 Electromagnetic . | . . . . . Impact . | . . . . . Slashing . | . . . . . Piercing . | . . . . . Highest Corruption 5 | . . . . 5 Average Corruption 2 | . . . . 2 Corruption Purged . | . . . . . Corruption Blocked . | . . . . . Overload Shots . | . . . . . Overflow Damage 80 | . . . 35 45 Projectiles . | . . . . . Explosions 80 | . . . 35 45 Melee . | . . . . . Knockbacks . | . . . . . Impact . | . . . . . Kinetic . | . . . . . Secondary . | . . . . . Self-Inflicted Damage 575 | . . . 202 373 Shots 27 | . . . 9 18 Rammed . | . . . . . Targets Rammed 1 | . . . . 1 Kicked 1 | . . . . 1 Crushed . | . . . . . Highest Temperature 106 | 18 27 106 79 104 Average Temperature 27 | 7 10 38 26 25 Received Heat Transfer 1008 | . . 162 513 333 Siege Activations . | . . . . . Robots Corrupted . | . . . . . Combat Hostiles . | . . . . . Parts Fried . | . . . . . Impact Corruptions . | . . . . . Robots Melted . | . . . . . Combat Hostiles . | . . . . . Parts Melted 3 | . . 2 1 . Heat Transferred 3441 | 518 185 814 1517 407 Parts Sabotaged . | . . . . . Parts Stolen . | . . . . . Parts Stripped . | . . . . . Power Chain Reactions . | . . . . . Alert | -11 -10 -9 -8 -8 ------- Run | Yrd Mat Mat Mat Gar Peak Influence 550 | 15 49 177 340 550 Initial 221 | . 9 20 74 221 Average 181 | 7 33 99 135 424 Maximum Alert Level 2 | . . . 1 2 Low Security (%) 66 | 100 100 100 77 . Level 1 17 | . . . 22 39 Level 2 15 | . . . . 60 Level 3 . | . . . . . Level 4 . | . . . . . Level 5 . | . . . . . High Security . | . . . . . Max Security . | . . . . . Squads Dispatched 3 | . . 1 2 . Investigation . | . . . . . Extermination . | . . . . . Reinforcement 2 | . . 1 1 . Assault . | . . . . . Garrison 1 | . . . 1 . Intercept . | . . . . . Searches Triggered . | . . . . . Construction Impeded . | . . . . . Haulers Reinforced . | . . . . . Active Scanning Responses . | . . . . . Cargo Convoy Interrupts . | . . . . . Stealth | -11 -10 -9 -8 -8 --------- Run | Yrd Mat Mat Mat Gar Distress Signals . | . . . . . Communications Jammed . | . . . . . Distress Signals . | . . . . . Times Spotted 56 | . 3 11 19 23 Peak Tracking Total 7 | . 2 5 5 7 Tactical Retreats 5 | . . 1 2 2 Traps | -11 -10 -9 -8 -8 ------- Run | Yrd Mat Mat Mat Gar Traps Triggered 1 | . 1 . . . Indirectly . | . . . . . Trap Hack Attempts . | . . . . . Triggered . | . . . . . Disarmed . | . . . . . Reprogrammed 1 | . 1 . . . Reused . | . . . . . Traps Extracted . | . . . . . Installed . | . . . . . Triggered . | . . . . . Machines | -11 -10 -9 -8 -8 ---------- Run | Yrd Mat Mat Mat Gar Machines Disabled 5 | . . . 2 3 Max in Single Turn 2 | . . . 1 2 Machines Repaired . | . . . . . Machines Dismantled . | . . . . . Machines Sabotaged . | . . . . . Overloaded Fab Kills . | . . . . . Hacking | -11 -10 -9 -8 -8 --------- Run | Yrd Mat Mat Mat Gar Machines Accessed 10 | . 2 3 3 2 Terminals 9 | . 2 3 2 2 Fabricators . | . . . . . Repair Stations . | . . . . . Recycling Units . | . . . . . Scanalyzers . | . . . . . Garrison Access 1 | . . . 1 . Total Hacks 18 | . 4 7 5 2 Successful 9 | . 2 2 3 2 Failed 9 | . 2 5 2 . Catastrophic 2 | . 1 1 . . Database Lockouts . | . . . . . Manual 9 | . 3 2 4 . Terminals 16 | . 4 7 3 2 Fabricators . | . . . . . Repair Stations . | . . . . . Recycling Units . | . . . . . Scanalyzers . | . . . . . Garrison Access 2 | . . . 2 . Terminal Hacks 8 | . 2 2 2 2 Record 3 | . . 1 2 . Emergency Access Points 1 | . . . . 1 Locate Traps 1 | . 1 . . . Reprogram Traps 1 | . 1 . . . Zone Layout 1 | . . 1 . . Patrol Navigation 1 | . . . . 1 Fabricator Hacks . | . . . . . Repair Station Hacks . | . . . . . Recycling Unit Hacks . | . . . . . Scanalyzer . | . . . . . Garrison Access Hacks 1 | . . . 1 . Unlock Access 1 | . . . 1 . Unauthorized Hacks . | . . . . . Terminals . | . . . . . Fabricators . | . . . . . Repair Stations . | . . . . . Recycling Units . | . . . . . Scanalyzers . | . . . . . Garrison Access . | . . . . . Data Cores Recovered . | . . . . . Used . | . . . . . Hacking Detections 7 | . 2 2 2 1 Full Trace Events . | . . . . . Feedback Events . | . . . . . Feedback Blocked . | . . . . . Robot Schematics Acquired . | . . . . . Robots Built . | . . . . . Authchips . | . . . . . Time . | . . . . . Total Robot Build Rating . | . . . . . Part Schematics Acquired . | . . . . . Parts Built . | . . . . . Authchips . | . . . . . Time . | . . . . . Total Part Build Rating . | . . . . . Parts Repaired . | . . . . . Time . | . . . . . Parts Recycled . | . . . . . Recycled Matter . | . . . . . Retrieved Matter . | . . . . . Retrieved Components . | . . . . . Parts Scanalyzed . | . . . . . Part Schematics Acquired . | . . . . . Parts Damaged . | . . . . . Bothacking | -11 -10 -9 -8 -8 ------------ Run | Yrd Mat Mat Mat Gar Used RIF Installer . | . . . . . Robots Hacked . | . . . . . Non-combat . | . . . . . Combat . | . . . . . Robot Hacks Applied . | . . . . . Relay Couplers Released . | . . . . . Fabnet Peak Effective % . | . . . . . Robots Rewired . | . . . . . Allies Hacked . | . . . . . Hacks Repelled . | . . . . . Allies | -11 -10 -9 -8 -8 -------- Run | Yrd Mat Mat Mat Gar Total Allies . | . . . . . Largest Group . | . . . . . Highest-Rated Group . | . . . . . Highest-Rated Ally . | . . . . . Total Orders . | . . . . . Ally Attacks . | . . . . . Total Damage . | . . . . . Kills . | . . . . . Allies Corrupted . | . . . . . Allies Melted . | . . . . . Intel | -11 -10 -9 -8 -8 ------- Run | Yrd Mat Mat Mat Gar Robot Analysis Total . | . . . . . Derelict Logs Recovered . | . . . . . Drone Launches . | . . . . . Drone Recoveries . | . . . . . Exploration | -11 -10 -9 -8 -8 ------------- Run | Yrd Mat Mat Mat Gar Turns Passed 1795 | 145 220 358 602 470 Spaces Moved 782 | 47 138 188 245 164 Core 24 | 19 2 . 1 2 Treads . | . . . . . Legs 758 | 28 136 188 244 162 Wheels . | . . . . . Hover . | . . . . . Flight . | . . . . . Fastest Speed 50 | 50 120 120 130 120 Average Speed 150 | 107 123 121 157 209 Slowest Speed 1050 | 120 250 190 1050 850 Overloaded Moves . | . . . . . Propulsion Burnouts . | . . . . . Robots Hopped . | . . . . . Cave-ins Triggered . | . . . . . Exploration Rate (%) 23 | 3 27 22 31 33 Regions Visited 4 Branch Regions . Pre-discovered Areas . | . . . . . Known Exits Taken 1 | . . . 1 . Unknown Exits Taken 3 | 1 1 1 . . Scrap Searched . | . . . . . Spaces Dug 32 | . . . 32 . Terrain Destroyed 236 | . . . 99 137 Melee . | . . . . . Projectile . | . . . . . AOE 236 | . . . 99 137 Terrain Rammed . | . . . . . Walls Destroyed . | . . . . . Machines Disabled . | . . . . . Actions | -11 -10 -9 -8 -8 --------- Run | Yrd Mat Mat Mat Gar Total 1208 | 121 175 274 386 252 Wait 212 | 50 19 44 54 45 Move 778 | 46 137 187 244 164 Hop . | . . . . . Pick Up 54 | 8 8 9 25 4 Fast Attach 3 | 1 2 . . . Attach 39 | 6 . 7 11 15 Detach . | . . . . . Swap 4 | . 1 . 3 . Drop 14 | . 2 3 8 1 Fire 103 | 10 6 24 41 22 Melee . | . . . . . Ram . | . . . . . Kick 1 | . . . . 1 Crush . | . . . . . Escape Stasis . | . . . . . Rewire . | . . . . . Trap . | . . . . . Miscellaneous . | . . . . . Route ------- -11/Scrapyard -10/Materials -9/Materials -8/Materials -8/Garrison History --------- Turn | Location | Event 11 | -11/Scrapyard | Discovered new exit (range 16) 146 | -11/Scrapyard | Entered Materials 328 | -10/Materials | Discovered new exit (range 15) 348 | -10/Materials | Build established: Mutant 366 | -10/Materials | Entered another Materials area 366 | -9/Materials | Evolved 2 slots: Propulsion x1, Utility x1 502 | -9/Materials | Lost 4 parts (1p2u1w) 719 | -9/Materials | Discovered new exit (range 5) 724 | -9/Materials | Entered another Materials area 724 | -8/Materials | Evolved 2 slots: Propulsion x1, Utility x1 784 | -8/Materials | Found Prototype Launcher 787 | -8/Materials | Found Prototype Launcher 789 | -8/Materials | Found Prototype Launcher 791 | -8/Materials | Found Prototype Launcher 1279 | -8/Materials | Identified Rocket Array (x4) 1286 | -8/Materials | Garrison activated, responded to threat 1324 | -8/Materials | Identified exit to Garrison 1326 | -8/Materials | Entered Garrison 1364 | -8/Garrison | Triggered checkpoint 1413 | -8/Garrison | Lost 3 parts (2n1w) 1449 | -8/Garrison | Triggered checkpoint 1480 | -8/Garrison | Lost 5 parts (1p2n2w) 1486 | -8/Garrison | Triggered checkpoint 1498 | -8/Garrison | Core integrity fell below 50% 1550 | -8/Garrison | Lost 3 parts (2n1u) 1636 | -8/Garrison | Triggered checkpoint 1647 | -8/Garrison | Lost 5 parts (2n2u1w) 1770 | -8/Garrison | Triggered checkpoint 1785 | -8/Garrison | Core integrity fell below 20% 1796 | -8/Garrison | Destroyed by Y-45 Defender with Beam Rifle Last Messages --------------- Acquired 7 matter. Beams of light sweep through the air. An alarm sounds. The unstable cave ceiling collapses. Acquired 1 matter. Acquired 10 matter. Connecting with Garrison Terminal... >>Access(Emergency) Found 48 emergency access points. Map updated. P-60 Hacker springs to life. Aluminum Leg destroyed. Beams of light sweep through the air. An alarm sounds. Aluminum Leg destroyed. Imp. Aluminum Leg destroyed. Lgt. Nuclear Core destroyed. Y-45 Defender destroyed. Acquired 53 matter. Autogun destroyed. Map ----- +----------------------------------------------------+ | | | | | | | | | | | | | | | | | ?????????????????????????????????????????????????? | | ?????????????????????????????????????????????????? | | ?????????????????????????????????????????????????? | | ?????????????????????????????????????????????????? | | ?????????????????????????????????????????????????? | | ?????????????????????????????????????????????????? | | ?????????????????????????????????????????????????? | | ?????????????????????????????????????????????????? | | ?????????????????????????????????????????????????? | | ??????????????????????????????##?????????????????? | | ?????????????????????????????+ ?????????????????? | | ?????????????????????????????# #?????????????????? | | ?????????????????????????????# #?????????????????? | | ?????????????????????????????# #?????????????????? | | ???????+???????+?????##+?????# #?????????????????? | | ?????????????????????# ????# #?????????????????? | | ?????????????????##### =#####p#?????????????????? | | ?????????? Y !*@p=p #?????????????????? | | ?????????????????############# #?????????????????? | | ?????????????????????????????# #?????????????????? | | ?????????????????????????+???# #?????????????????? | | ?????????????????????????????# #?????????????????? | | ??????????????????????#+###+## #?????????????????? | | ??????????????????????# #?????????????????? | | ??????????????????????#+###+## #?????????????????? | | ?????????????????????????#!??# #?????????????????? | | ?????????????????????????+???# #?????????????????? | | ?????????????????????????????# #?????????????????? | | ???????+?+????? ############# ##########????????? | | ?????????????? #????????? | | ?????????????? #????????? | | ?????????????? #????????? | | ???????+?+?????++#####"""##### ###### #??????### | | ?????????????????????????????# #????# #??????# | | ????+??????????????????+?????# ###??# #??????# | | ?????????????????????????????# #T#### #??????# | | ?????????????????+???????????# #??????#^ | | ?????????????????????????????#+###### #??????# | | ????????????????????????????????????# #??????# | | ????????????????????????????????????# #??????# | | ????????????????????????????????????# ######## | | ????????????????????????????????????# ^ ## ## | +----------------------------------------------------+ Best States ------------- Heat Dissipation 55 Energy Generation 14 Energy Capacity 160 Matter Stores 300 Matter Capacity 300 Sight Range 16 Terrain Scan Density 10 Jamming Range 12 Armor Coverage 450 Evasion (%) 55 Item Schematics ----------------- None Robot Schematics ------------------ None Fabricated ------------ Nothing Alien Tech Used ----------------- None Achievements -------------- Remodeling Challenges ------------ None Game ------ Seed ColdRemoteMagmablaster Manual? 0 Play Time 00:27:19 Cumulative 8.7 hours Start 2024.04.27 @ 13:08:03 End 2024.04.27 @ 15:49:26 Sessions 3 Manual Loads 0 Difficulty Rogue Special Mode None Game No. 18 Rogue 18 Adventurer 0 Explorer 0 Win Type - Total 0 Types 0/0/0/0/0/0/0/0/0 Lore% 7 Gallery% 14 Achievement% 12 Wizard Run 0 Options --------- Layout 1 ASCII 0 Keyboard 0 Movement Mouse Keybinds 0 Fullscreen 1 Font 24/Smallcaps Map View 50x35 Zoom Use 0% Tactical HUD 0 Map Filters NONE Filters NONE Steam 1 RUN: 68ae2242-6530-483c-b77c-d58221c0ca9f